fUST/lending_fUST_20260111
["ID","MTS","AMOUNT","RATE_DAILY","PERIOD"]
[401247552,1768071043337,-315.18853,0.00037038,31]
[401247553,1768071043346,-315.18853,0.00037038,31]
[401247555,1768071043355,-315.18853,0.00037038,31]
[401247557,1768071043364,-315.18853,0.00037038,31]
[401247559,1768071043374,-315.18853,0.00037038,31]
[401247562,1768071043383,-315.188524,0.00037038,31]
[401247563,1768071043393,-151.0,0.00037038,31]
[401247565,1768071043402,-151.0,0.00037038,31]
[401247567,1768071043413,-163.913875,0.00037038,31]
[401247569,1768071043423,-151.0,0.00037038,31]
[401247571,1768071043432,-151.0,0.00037038,31]
[401247573,1768071043441,-151.0,0.00037038,31]
[401247575,1768071043450,-151.0,0.00037038,31]
[401247577,1768071043459,-214.28838,0.00037038,31]
[401247579,1768071043467,-226.952409,0.00037038,31]
[401247581,1768071043477,-160.29273,0.00037038,31]
[401247583,1768071043486,-1105748.63183124,0.00037039,20]
[401247585,1768071043495,-1563743.91656318,0.00037039,20]
[401247587,1768071043506,-1082271.1294203,0.00037039,20]
[401247646,1768071044011,-0.00021584,0.00011176,2]
[401247648,1768071044022,-299.99978416,0.00011176,2]
[401247650,1768071044031,-247.00282403,0.00011176,2]
[401247653,1768071044043,-52.99717597,0.00011176,2]
[401247654,1768071044052,-300.0,0.00011176,2]
[401247656,1768071044062,-300.0,0.00011176,2]
[401247657,1768071044072,-598.0,0.00035097,30]
[401247658,1768071044081,-3220.99,0.0003589,3]
[401247659,1768071044091,-13687.94072426,0.00037039,20]
[401247662,1768071044802,-400.0,0.00012575,2]
[401247666,1768071044856,-200.0,0.00012575,2]
[401247667,1768071044866,-720.0,0.00013832,2]
[401247668,1768071044876,-864.0,0.00015215,2]
[401247669,1768071044886,-1000.0,0.00016737,2]
[401247670,1768071044896,-1000.0,0.0001841,2]
[401247671,1768071044906,-244.0,0.0001841,2]
[401247672,1768071044916,-1000.0,0.00020251,2]
[401247673,1768071044927,-599.0,0.00037037,30]
[401247674,1768071044936,-15472.43114019,0.00037039,20]
[401247675,1768071045588,-453.0,0.00020251,2]
[401247682,1768071046487,-39.0,0.00020251,2]
[401247683,1768071046497,-1000.0,0.00022277,10]
[401247684,1768071046507,-301.22142741,0.00022277,10]
[401247685,1768071046540,-489.77857259,0.00022277,10]
[401247686,1768071046550,-4866.65215032,0.00037039,20]
[401247687,1768071046562,-3800.84185321,0.00037039,20]
[401247691,1768071328890,171.16,6.069e-05,2]
[401247692,1768071329273,342.33,6.358e-05,2]
[401247693,1768071330200,513.49,6.647e-05,2]
[401247694,1768071330603,684.66,6.936e-05,2]
[401247695,1768071331006,855.82,7.225e-05,2]
[401247696,1768071331458,1026.99,7.514e-05,2]
[401247697,1768071331858,814.73899001,7.804e-05,2]
[401247698,1768071331884,383.41100999,7.804e-05,2]
[401247699,1768071332289,1253.40899001,8.093e-05,2]
[401247700,1768071332315,115.90100999,8.093e-05,2]
[401247701,1768071332748,1540.48,8.382e-05,2]
[401247702,1768071333134,1711.64,8.671e-05,2]
[401247703,1768071401715,154.05,7.068e-05,2]
[401247704,1768071402082,205.4,7.375e-05,2]
[401247705,1768071402472,256.75,7.683e-05,2]
[401247706,1768071402863,308.1,7.99e-05,2]
[401247707,1768071403251,359.45,8.297e-05,2]
[401247708,1768071403630,410.79,8.605e-05,2]
[401247709,1768071404147,462.14,8.912e-05,2]
[401247710,1768071404417,513.49,9.219e-05,2]
[401247712,1768071541261,156.29,8.251e-05,2]
[401247713,1768071746267,-151.13,9.447e-05,2]
[401247714,1768071832595,204.6563094,8.998e-05,2]
[401247715,1768072033772,155.0,8.246e-05,2]
[401247716,1768072080872,218.55,8.238e-05,2]
[401247717,1768072081167,218.55,8.238e-05,2]
[401247718,1768072126697,-250.46423264,9.724e-05,2]
[401247719,1768072128824,-188.4057517,9.724e-05,2]
[401247720,1768072145942,153.20370617,8.561e-05,2]
[401247721,1768072216770,-61.13001566,9.724e-05,2]
[401247722,1768072216793,-167.46972508,9.724e-05,2]
[401247723,1768072216815,-530.93343442,9.724e-05,2]
[401247741,1768072231596,-25.06656558,9.724e-05,2]
[401247744,1768072231606,-440.13843442,9.861e-05,2]
[401247789,1768072237803,-59.86156558,9.861e-05,2]
[401247790,1768072237812,-189.96583338,9.908e-05,2]
[401247791,1768072237821,-213.97622948,9.926e-05,2]
[401247792,1768072237830,-500.0,9.926e-05,2]
[401247793,1768072237839,-175.32284976,9.926e-05,2]
[401247794,1768072237847,-175.48554534,9.926e-05,2]
[401247795,1768072237856,-2350.9741358,9.963e-05,2]
[401247796,1768072237865,-1200.0,9.994e-05,2]
[401247797,1768072237873,-300.0,9.995e-05,2]
[401247798,1768072237882,-300.0,9.995e-05,2]
[401247799,1768072237891,-300.0,9.995e-05,2]
[401247800,1768072237900,-300.0,9.995e-05,2]
[401247801,1768072237909,-50000.0,9.996e-05,2]
[401247802,1768072237918,-500.0,9.997e-05,2]
[401247803,1768072237926,-500.0,9.997e-05,2]
[401247804,1768072237935,-500.0,9.997e-05,2]
[401247805,1768072237944,-500.0,9.997e-05,2]
[401247806,1768072237953,-500.0,9.997e-05,2]
[401247807,1768072237962,-500.0,9.997e-05,2]
[401247808,1768072237972,-500.0,9.997e-05,2]
[401247809,1768072237981,-500.0,9.997e-05,2]
[401247810,1768072237990,-500.0,9.997e-05,2]
[401247811,1768072238000,-500.0,9.997e-05,2]
[401247812,1768072238009,-500.0,9.997e-05,2]
[401247813,1768072238019,-500.0,9.997e-05,2]
[401247814,1768072238028,-500.0,9.997e-05,2]
[401247815,1768072238038,-500.0,9.997e-05,2]
[401247816,1768072238048,-500.0,9.997e-05,2]
[401247817,1768072238058,-500.0,9.997e-05,2]
[401247818,1768072238068,-500.0,9.997e-05,2]
[401247819,1768072238078,-500.0,9.997e-05,2]
[401247820,1768072238088,-500.0,9.998e-05,2]
[401247821,1768072238097,-352.12,9.998e-05,2]
[401247822,1768072238107,-500.0,9.998e-05,2]
[401247823,1768072238117,-500.0,9.998e-05,2]
[401247824,1768072238128,-500.0,9.998e-05,2]
[401247825,1768072238138,-500.0,9.998e-05,2]
[401247826,1768072238148,-500.0,9.998e-05,2]
[401247827,1768072238158,-500.0,9.998e-05,2]
[401247828,1768072238168,-500.0,9.998e-05,2]
[401247829,1768072238178,-500.0,9.998e-05,2]
[401247830,1768072238187,-500.0,9.998e-05,2]
[401247831,1768072238197,-500.0,9.998e-05,2]
[401247832,1768072238206,-500.0,9.998e-05,2]
[401247833,1768072238215,-500.0,9.998e-05,2]
[401247834,1768072238225,-500.0,9.998e-05,2]
[401247835,1768072238235,-500.0,9.998e-05,2]
[401247836,1768072238245,-500.0,9.998e-05,2]
[401247837,1768072238255,-500.0,9.998e-05,2]
[401247838,1768072238265,-500.0,9.998e-05,2]
[401247839,1768072238275,-500.0,9.998e-05,2]
[401247840,1768072238285,-500.0,9.998e-05,2]
[401247841,1768072238295,-500.0,9.998e-05,2]
[401247842,1768072238305,-500.0,9.998e-05,2]
[401247843,1768072238315,-500.0,9.998e-05,2]
[401247844,1768072238325,-500.0,9.998e-05,2]
[401247845,1768072238335,-500.0,9.998e-05,2]
[401247846,1768072238345,-500.0,9.998e-05,2]
[401247847,1768072238355,-500.0,9.998e-05,2]
[401247848,1768072238365,-500.0,9.998e-05,2]
[401247849,1768072238374,-500.0,9.998e-05,2]
[401247850,1768072238387,-500.0,9.998e-05,2]
[401247851,1768072238397,-500.0,9.998e-05,2]
[401247852,1768072238407,-500.0,9.998e-05,2]
[401247853,1768072238416,-500.0,9.998e-05,2]
[401247854,1768072238427,-500.0,9.998e-05,2]
[401247855,1768072238437,-570.70741179,9.998e-05,2]
[401247856,1768072238447,-500.0,9.998e-05,2]
[401247857,1768072238457,-500.0,9.998e-05,2]
[401247858,1768072238467,-500.0,9.998e-05,2]
[401247859,1768072238476,-500.0,9.998e-05,2]
[401247860,1768072238485,-500.0,9.998e-05,2]
[401247861,1768072238494,-500.0,9.998e-05,2]
[401247862,1768072238503,-500.0,9.998e-05,2]
[401247863,1768072238513,-500.0,9.998e-05,2]
[401247864,1768072238522,-500.0,9.998e-05,2]
[401247865,1768072238532,-500.0,9.998e-05,2]
[401247866,1768072238541,-500.0,9.998e-05,2]
[401247867,1768072238552,-500.0,9.998e-05,2]
[401247868,1768072238561,-500.0,9.998e-05,2]
[401247869,1768072238571,-500.0,9.998e-05,2]
[401247870,1768072238580,-500.0,9.998e-05,2]
[401247871,1768072238589,-500.0,9.998e-05,2]
[401247872,1768072238599,-170.348341,9.998e-05,2]
[401247873,1768072238608,-500.0,9.998e-05,2]
[401247874,1768072238618,-500.0,9.998e-05,2]
[401247875,1768072238628,-500.0,9.998e-05,2]
[401247876,1768072238638,-500.0,9.998e-05,2]
[401247877,1768072238648,-500.0,9.998e-05,2]
[401247878,1768072238657,-500.0,9.998e-05,2]
[401247879,1768072238670,-500.0,9.998e-05,2]
[401247880,1768072238680,-500.0,9.998e-05,2]
[401247881,1768072238690,-500.0,9.998e-05,2]
[401247882,1768072238700,-390.0,9.998e-05,2]
[401247883,1768072238709,-500.0,9.998e-05,2]
[401247884,1768072238719,-500.0,9.998e-05,2]
[401247885,1768072238728,-500.0,9.998e-05,2]
[401247886,1768072238738,-500.0,9.998e-05,2]
[401247887,1768072238747,-500.0,9.998e-05,2]
[401247888,1768072238757,-500.0,9.998e-05,2]
[401247889,1768072238767,-555.91124265,9.998e-05,2]
[401247890,1768072238776,-500.0,9.998e-05,2]
[401247891,1768072238786,-500.0,9.998e-05,2]
[401247892,1768072238796,-220.59872061,9.998e-05,2]
[401247893,1768072238806,-500.0,9.998e-05,2]
[401247894,1768072238816,-500.0,9.998e-05,2]
[401247895,1768072238827,-500.0,9.998e-05,2]
[401247896,1768072238837,-500.0,9.998e-05,2]
[401247897,1768072238848,-500.0,9.998e-05,2]
[401247898,1768072238858,-500.0,9.998e-05,2]
[401247899,1768072238868,-500.0,9.998e-05,2]
[401247900,1768072238878,-500.0,9.998e-05,2]
[401247901,1768072238889,-500.0,9.998e-05,2]
[401247902,1768072238898,-500.0,9.998e-05,2]
[401247903,1768072238908,-500.0,9.998e-05,2]
[401247904,1768072238918,-262.86307123,9.998e-05,2]
[401247905,1768072238928,-500.0,9.998e-05,2]
[401247906,1768072238938,-500.0,9.998e-05,2]
[401247907,1768072238947,-500.0,9.998e-05,2]
[401247908,1768072238957,-500.0,9.998e-05,2]
[401247909,1768072238967,-500.0,9.998e-05,2]
[401247910,1768072238977,-500.0,9.998e-05,2]
[401247911,1768072238987,-500.0,9.998e-05,2]
[401247912,1768072238996,-500.0,9.998e-05,2]
[401247913,1768072239006,-173.135069,9.998e-05,2]
[401247914,1768072239015,-500.0,9.998e-05,2]
[401247915,1768072239025,-500.0,9.998e-05,2]
[401247916,1768072239034,-500.0,9.998e-05,2]
[401247917,1768072239043,-500.0,9.998e-05,2]
[401247918,1768072239053,-500.0,9.998e-05,2]
[401247919,1768072239063,-500.0,9.998e-05,2]
[401247920,1768072239072,-500.0,9.998e-05,2]
[401247921,1768072239081,-500.0,9.998e-05,2]
[401247922,1768072239091,-500.0,9.998e-05,2]
[401247923,1768072239100,-500.0,9.998e-05,2]
[401247924,1768072239110,-500.0,9.998e-05,2]
[401247925,1768072239120,-500.0,9.998e-05,2]
[401247926,1768072239130,-500.0,9.998e-05,2]
[401247927,1768072239140,-500.0,9.998e-05,2]
[401247928,1768072239150,-500.0,9.998e-05,2]
[401247929,1768072239160,-500.0,9.998e-05,2]
[401247930,1768072239170,-500.0,9.998e-05,2]
[401247931,1768072239180,-500.0,9.998e-05,2]
[401247932,1768072239190,-500.0,9.998e-05,2]
[401247933,1768072239199,-500.0,9.998e-05,2]
[401247934,1768072239208,-500.0,9.998e-05,2]
[401247935,1768072239218,-500.0,9.998e-05,2]
[401247936,1768072239228,-500.0,9.998e-05,2]
[401247937,1768072239237,-500.0,9.998e-05,2]
[401247938,1768072239246,-500.0,9.998e-05,2]
[401247939,1768072239255,-500.0,9.998e-05,2]
[401247940,1768072239265,-500.0,9.998e-05,2]
[401247941,1768072239275,-500.0,9.998e-05,2]
[401247942,1768072239284,-500.0,9.998e-05,2]
[401247943,1768072239294,-500.0,9.998e-05,2]
[401247944,1768072239303,-500.0,9.998e-05,2]
[401247945,1768072239313,-500.0,9.998e-05,2]
[401247946,1768072239323,-500.0,9.998e-05,2]
[401247947,1768072239333,-500.0,9.998e-05,2]
[401247948,1768072239343,-500.0,9.998e-05,2]
[401247949,1768072239353,-500.0,9.998e-05,2]
[401247950,1768072239362,-500.0,9.998e-05,2]
[401247951,1768072239372,-500.0,9.998e-05,2]
[401247952,1768072239383,-500.0,9.998e-05,2]
[401247953,1768072239393,-500.0,9.998e-05,2]
[401247954,1768072239403,-500.0,9.998e-05,2]
[401247955,1768072239412,-500.0,9.998e-05,2]
[401247956,1768072239424,-500.0,9.998e-05,2]
[401247957,1768072239433,-500.0,9.998e-05,2]
[401247958,1768072239443,-500.0,9.998e-05,2]
[401247959,1768072239453,-500.0,9.998e-05,2]
[401247960,1768072239462,-414.93049702,9.998e-05,2]
[401247961,1768072239474,-500.0,9.998e-05,2]
[401247962,1768072239483,-500.0,9.998e-05,2]
[401247963,1768072239493,-500.0,9.998e-05,2]
[401247964,1768072239503,-500.0,9.998e-05,2]
[401247965,1768072239512,-500.0,9.998e-05,2]
[401247967,1768072239522,-500.0,9.998e-05,2]
[401247969,1768072239530,-500.0,9.998e-05,2]
[401247970,1768072239540,-500.0,9.998e-05,2]
[401247973,1768072239554,-500.0,9.998e-05,2]
[401247975,1768072239571,-500.0,9.998e-05,2]
[401247977,1768072239580,-500.0,9.998e-05,2]
[401247978,1768072239590,-500.0,9.998e-05,2]
[401247980,1768072239599,-500.0,9.998e-05,2]
[401247983,1768072239609,-499.99999999,9.998e-05,2]
[401247985,1768072239620,-500.0,9.998e-05,2]
[401247986,1768072239636,-500.0,9.998e-05,2]
[401247989,1768072239648,-400.0,9.998e-05,2]
[401247990,1768072239659,-500.0,9.998e-05,2]
[401247992,1768072239668,-500.0,9.998e-05,2]
[401247994,1768072239678,-500.0,9.998e-05,2]
[401247997,1768072239688,-500.0,9.998e-05,2]
[401247999,1768072239698,-500.0,9.998e-05,2]
[401248001,1768072239707,-559.34646736,9.998e-05,2]
[401248003,1768072239716,-300.0,9.998e-05,2]
[401248005,1768072239727,-500.0,9.998e-05,2]
[401248007,1768072239737,-500.0,9.998e-05,2]
[401248008,1768072239746,-500.0,9.998e-05,2]
[401248010,1768072239757,-500.0,9.998e-05,2]
[401248012,1768072239766,-500.0,9.998e-05,2]
[401248013,1768072239776,-500.0,9.998e-05,2]
[401248014,1768072239785,-500.0,9.998e-05,2]
[401248016,1768072239797,-500.0,9.998e-05,2]
[401248018,1768072239806,-500.0,9.998e-05,2]
[401248020,1768072239815,-500.0,9.998e-05,2]
[401248022,1768072239825,-500.0,9.998e-05,2]
[401248024,1768072239835,-500.0,9.998e-05,2]
[401248026,1768072239844,-500.0,9.998e-05,2]
[401248028,1768072239853,-500.0,9.998e-05,2]
[401248030,1768072239863,-500.0,9.998e-05,2]
[401248031,1768072239872,-400.0,9.998e-05,2]
[401248033,1768072239883,-500.0,9.998e-05,2]
[401248035,1768072239892,-500.0,9.998e-05,2]
[401248038,1768072239903,-500.0,9.998e-05,2]
[401248040,1768072239912,-500.0,9.999e-05,2]
[401248041,1768072239922,-231.51185429,9.999e-05,2]
[401248044,1768072239931,-159518.74,0.0001,2]
[401248045,1768072239940,-500.0,0.00010063,2]
[401248047,1768072239950,-500.0,0.00010135,2]
[401248050,1768072239960,-300.0,0.00010199,2]
[401248051,1768072239969,-300.0,0.00010199,2]
[401248054,1768072239979,-300.0,0.00010199,2]
[401248056,1768072239988,-300.0,0.00010199,2]
[401248058,1768072239996,-300.0,0.00010199,2]
[401248060,1768072240006,-300.0,0.00010199,2]
[401248061,1768072240015,-300.0,0.00010199,2]
[401248063,1768072240024,-300.0,0.00010199,2]
[401248065,1768072240033,-300.0,0.00010199,2]
[401248067,1768072240043,-300.0,0.00010199,2]
[401248070,1768072240051,-300.0,0.00010199,2]
[401248072,1768072240061,-300.0,0.00010199,2]
[401248074,1768072240070,-300.0,0.00010199,2]
[401248077,1768072240079,-300.0,0.00010199,2]
[401248078,1768072240088,-300.0,0.00010199,2]
[401248081,1768072240098,-600.0,0.00010199,2]
[401248083,1768072240107,-596.63096237,0.000102,2]
[401248084,1768072240116,-250.0,0.000102,2]
[401248087,1768072240126,-381.88170042,0.00010272,2]
[401248088,1768072240135,-352.12,0.00010272,2]
[401248091,1768072240144,-500.0,0.00010272,2]
[401248093,1768072240153,-3307.98303491,0.00010326,2]
[401248095,1768072240164,-352.12,0.00010546,2]
[401248097,1768072240173,-500.0,0.00010546,2]
[401248099,1768072240182,-500.0,0.00010748,2]
[401248101,1768072240191,-500.0,0.0001082,2]
[401248103,1768072240200,-352.12,0.0001082,2]
[401248105,1768072240209,-500.0,0.00010885,2]
[401248107,1768072240218,-1019.92,0.00010888,2]
[401248109,1768072240227,-999.0,0.00010959,2]
[401248111,1768072240236,-145833.419902,0.00010959,2]
[401248113,1768072240245,-1500.0,0.00010959,2]
[401248115,1768072240254,-1500.0,0.00010959,2]
[401248117,1768072240265,-1591.22706121,0.00010988,2]
[401248119,1768072240274,-1680.0,0.00010993,2]
[401248121,1768072240283,-420.0,0.00010994,2]
[401248123,1768072240292,-1006.29911303,0.00010999,2]
[401248125,1768072240302,-151.0,0.00011,2]
[401248127,1768072240312,-151.0,0.00011,2]
[401248129,1768072240322,-500.0,0.00011022,2]
[401248131,1768072240331,-500.0,0.00011094,2]
[401248133,1768072240341,-352.13267094,0.00011094,2]
[401248135,1768072240350,-151.0,0.000111,2]
[401248137,1768072240360,-151.0,0.000111,2]
[401248138,1768072240369,-500.0,0.00011159,2]
[401248141,1768072240381,-720.0,0.00011219,2]
[401248143,1768072240390,-200.0,0.00011296,2]
[401248145,1768072240400,-500.0,0.00011296,2]
[401248147,1768072240409,-151.0,0.000113,2]
[401248148,1768072240420,-151.0,0.000113,2]
[401248151,1768072240429,-500.0,0.00011368,2]
[401248153,1768072240439,-151.0,0.000114,2]
[401248154,1768072240448,-151.0,0.000114,2]
[401248157,1768072240458,-500.0,0.00011433,2]
[401248158,1768072240467,-1134.61689238,0.00011498,2]
[401248161,1768072240477,-151.0,0.000115,2]
[401248163,1768072240487,-151.0,0.000115,2]
[401248164,1768072240496,-500.0,0.0001157,2]
[401248166,1768072240505,-151.0,0.000116,2]
[401248168,1768072240514,-151.0,0.000116,2]
[401248171,1768072240524,-533.59953373,0.00011642,2]
[401248173,1768072240533,-489.65888898,0.00011707,2]
[401248175,1768072240542,-151.0,0.000118,2]
[401248177,1768072240552,-151.0,0.000118,2]
[401248178,1768072240561,-151.0,0.000119,2]
[401248180,1768072240571,-151.0,0.000119,2]
[401248182,1768072240580,-224.15968339,0.00011908,2]
[401248184,1768072240589,-151.0,0.00012,2]
[401248186,1768072240598,-151.0,0.00012,2]
[401248188,1768072240607,-2351.0,0.00012093,2]
[401248201,1768072240717,-587.0,0.00012094,2]
[401248203,1768072240727,-151.0,0.000121,2]
[401248206,1768072240737,-151.0,0.000121,2]
[401248208,1768072240746,-749.1,0.00012329,2]
[401248209,1768072240756,-1398.08,0.00012329,2]
[401248211,1768072240766,-1935.05,0.00012329,2]
[401248213,1768072240775,-10660.35,0.00012329,2]
[401248215,1768072240784,-8883.63,0.00012329,2]
[401248218,1768072240794,-7403.02,0.00012329,2]
[401248219,1768072240803,-6169.19,0.00012329,2]
[401248222,1768072240812,-5140.99,0.00012329,2]
[401248223,1768072240821,-4284.16,0.00012329,2]
[401248226,1768072240831,-3570.13,0.00012329,2]
[401248227,1768072240840,-2975.11,0.00012329,2]
[401248229,1768072240848,-2479.26,0.00012329,2]
[401248232,1768072240858,-2066.05,0.00012329,2]
[401248234,1768072240867,-1721.7,0.00012329,2]
[401248235,1768072240876,-1434.75,0.00012329,2]
[401248237,1768072240885,-1195.63,0.00012329,2]
[401248239,1768072240893,-996.36,0.00012329,2]
[401248241,1768072240902,-830.3,0.00012329,2]
[401248243,1768072240911,-691.91,0.00012329,2]
[401248245,1768072240920,-576.6,0.00012329,2]
[401248247,1768072240929,-480.5,0.00012329,2]
[401248249,1768072240938,-400.41,0.00012329,2]
[401248251,1768072240947,-333.68,0.00012329,2]
[401248253,1768072240957,-278.06,0.00012329,2]
[401248256,1768072240967,-231.72,0.00012329,2]
[401248258,1768072240976,-193.1,0.00012329,2]
[401248260,1768072240985,-160.92,0.00012329,2]
[401248262,1768072240994,-804.61,0.00012329,2]
[401248263,1768072241003,-500.0,0.00012329,2]
[401248266,1768072241012,-500.0,0.00012329,2]
[401248267,1768072241022,-500.0,0.00012329,2]
[401248269,1768072241031,-500.0,0.00012329,2]
[401248272,1768072241041,-500.0,0.00012329,2]
[401248274,1768072241050,-500.0,0.00012329,2]
[401248276,1768072241060,-500.0,0.00012329,2]
[401248278,1768072241069,-500.0,0.00012329,2]
[401248280,1768072241080,-500.0,0.00012329,2]
[401248282,1768072241089,-500.0,0.00012329,2]
[401248284,1768072241098,-500.0,0.00012329,2]
[401248286,1768072241107,-500.0,0.00012329,2]
[401248288,1768072241116,-500.0,0.00012329,2]
[401248290,1768072241125,-500.0,0.00012329,2]
[401248292,1768072241134,-500.0,0.00012329,2]
[401248294,1768072241143,-500.0,0.00012329,2]
[401248296,1768072241152,-500.0,0.00012329,2]
[401248298,1768072241161,-500.0,0.00012329,2]
[401248300,1768072241170,-363.50000005,0.00012329,2]
[401248301,1768072241179,-500.0,0.00012329,2]
[401248303,1768072241189,-500.0,0.00012329,2]
[401248306,1768072241198,-500.0,0.00012329,2]
[401248307,1768072241207,-500.0,0.00012329,2]
[401248309,1768072241216,-500.0,0.00012329,2]
[401248312,1768072241226,-500.0,0.00012329,2]
[401248314,1768072241235,-500.0,0.00012329,2]
[401248316,1768072241244,-500.0,0.00012329,2]
[401248317,1768072241254,-500.0,0.00012329,2]
[401248319,1768072241263,-500.0,0.00012329,2]
[401248321,1768072241273,-500.0,0.00012329,2]
[401248323,1768072241283,-500.0,0.00012329,2]
[401248325,1768072241292,-500.0,0.00012329,2]
[401248328,1768072241301,-500.0,0.00012329,2]
[401248329,1768072241311,-500.0,0.00012329,2]
[401248332,1768072241320,-500.0,0.00012329,2]
[401248334,1768072241330,-500.0,0.00012329,2]
[401248336,1768072241340,-500.0,0.00012329,2]
[401248338,1768072241350,-500.0,0.00012329,2]
[401248340,1768072241359,-1505.0663543,0.00012329,2]
[401248342,1768072241368,-1505.0663543,0.00012329,2]
[401248344,1768072241378,-1505.0663543,0.00012329,2]
[401248346,1768072241390,-1505.0663543,0.00012329,2]
[401248348,1768072241399,-1505.0663543,0.00012329,2]
[401248350,1768072241409,-1505.0663543,0.00012329,2]
[401248352,1768072241424,-1505.0663543,0.00012329,2]
[401248354,1768072241434,-1505.0663543,0.00012329,2]
[401248356,1768072241443,-1505.0663543,0.00012329,2]
[401248358,1768072241453,-1505.0663543,0.00012329,2]
[401248360,1768072241462,-1505.0663543,0.00012329,2]
[401248362,1768072241471,-1505.0663543,0.00012329,2]
[401248364,1768072241481,-1505.0663543,0.00012329,2]
[401248366,1768072241490,-1505.0663543,0.00012329,2]
[401248368,1768072241499,-1505.0663543,0.00012329,2]
[401248370,1768072241508,-1505.0663543,0.00012329,2]
[401248372,1768072241517,-1505.0663543,0.00012329,2]
[401248374,1768072241526,-1505.0663543,0.00012329,2]
[401248376,1768072241535,-1505.0663543,0.00012329,2]
[401248378,1768072241544,-1505.0663543,0.00012329,2]
[401248380,1768072241554,-1505.0663543,0.00012329,2]
[401248382,1768072241563,-1505.0663543,0.00012329,2]
[401248384,1768072241572,-1505.0663543,0.00012329,2]
[401248386,1768072241582,-1505.0663543,0.00012329,2]
[401248388,1768072241591,-1505.0663543,0.00012329,2]
[401248390,1768072241600,-1505.0663543,0.00012329,2]
[401248392,1768072241609,-1505.0663543,0.00012329,2]
[401248394,1768072241618,-1505.0663543,0.00012329,2]
[401248396,1768072241627,-1505.0663543,0.00012329,2]
[401248398,1768072241637,-1505.0663543,0.00012329,2]
[401248400,1768072241645,-1505.0663543,0.00012329,2]
[401248402,1768072241655,-1505.0663543,0.00012329,2]
[401248404,1768072241663,-1505.0663543,0.00012329,2]
[401248406,1768072241672,-1505.0663543,0.00012329,2]
[401248408,1768072241681,-1505.0663543,0.00012329,2]
[401248410,1768072241690,-1505.0663543,0.00012329,2]
[401248412,1768072241699,-1505.0663543,0.00012329,2]
[401248414,1768072241708,-1505.0663543,0.00012329,2]
[401248416,1768072241718,-1505.0663543,0.00012329,2]
[401248418,1768072241726,-1505.0663543,0.00012329,2]
[401248420,1768072241736,-1505.0663543,0.00012329,2]
[401248422,1768072241746,-1505.0663543,0.00012329,2]
[401248424,1768072241756,-1505.0663543,0.00012329,2]
[401248426,1768072241765,-1505.0663543,0.00012329,2]
[401248428,1768072241774,-1505.0663543,0.00012329,2]
[401248430,1768072241783,-1505.0663543,0.00012329,2]
[401248431,1768072241792,-1505.06635432,0.00012329,2]
[401248433,1768072241801,-1505.06635432,0.00012329,2]
[401248435,1768072241810,-1505.06635432,0.00012329,2]
[401248438,1768072241819,-1505.06635432,0.00012329,2]
[401248440,1768072241829,-1505.06635432,0.00012329,2]
[401248442,1768072241838,-1505.06635432,0.00012329,2]
[401248443,1768072241847,-1505.06635432,0.00012329,2]
[401248446,1768072241856,-864.0,0.00012341,2]
[401248448,1768072241865,-11449.21183026,0.00012407,2]
[401248450,1768072241874,-250.0,0.00012849,2]
[401248452,1768072241884,-7142.16034431,0.00013,2]
[401248454,1768072241893,-3292.0,0.00013302,2]
[401248456,1768072241902,-823.0,0.00013303,2]
[401248457,1768072241911,-1000.0,0.00013575,2]
[401248460,1768072241921,-509.39,0.00013698,2]
[401248462,1768072241930,-509.39,0.00013698,2]